bitfinex-derivatives/quotes_BTCF0:USTF0_20210706
["timestamp","ask_amount","ask_price","bid_price","bid_amount"]
[1625565790328,0.002,34136.0,34135.0,0.48461518]
[1625565790679,0.002,34136.0,34135.0,0.54361518]
[1625565790779,0.002,34136.0,34135.0,0.48461518]
[1625565790879,0.002,34136.0,34135.0,0.54361518]
[1625565791180,0.002,34136.0,34135.0,0.60261518]
[1625565791380,0.002,34136.0,34135.0,0.54361518]
[1625565792381,0.002,34136.0,34135.0,0.30303974]
[1625565792485,0.34931,34136.0,34135.0,0.30303974]
[1625565793584,0.34931,34136.0,34135.0,0.24403974]
[1625565793786,0.42384523,34136.0,34135.0,0.24403974]
[1625565794091,0.40831,34136.0,34135.0,0.24403974]
[1625565794387,0.91350604,34136.0,34135.0,0.24403974]
[1625565794585,0.92904095,34136.0,34135.0,0.24403974]
[1625565794842,0.91350604,34136.0,34135.0,0.24403974]
[1625565795490,1.58769409,34136.0,34135.0,0.24403974]
[1625565795641,0.91350604,34136.0,34135.0,0.24403974]
[1625565796441,1.60211934,34136.0,34135.0,0.24403974]
[1625565796541,1.60211934,34136.0,34135.0,0.0034643]
[1625565796994,1.60211934,34136.0,34131.0,0.00346481]
[1625565796995,2.61108766,34136.0,34131.0,0.00346481]
[1625565797193,0.24057544,34132.0,34131.0,0.06246481]
[1625565797394,0.24057544,34132.0,34131.0,0.12146481]
[1625565797495,0.24057544,34132.0,34131.0,0.06246481]
[1625565797794,0.24057544,34132.0,34131.0,0.57811455]
[1625565797995,0.24057544,34132.0,34131.0,1.26562833]
[1625565798546,0.24057544,34132.0,34131.0,0.32032009]
[1625565798798,0.24057544,34132.0,34131.0,1.26573641]
[1625565798896,0.24057544,34132.0,34131.0,1.32473641]
[1625565799048,0.24057544,34132.0,34131.0,2.3560914]
[1625565799599,0.24057544,34132.0,34131.0,3.56015257]
[1625565799800,0.24057544,34132.0,34131.0,2.3560914]
[1625565800199,0.24057544,34132.0,34131.0,2.2970914]
[1625565800401,0.24057544,34132.0,34131.0,1.26573641]
[1625565800604,0.24057544,34132.0,34131.0,0.23450489]
[1625565801059,0.24057544,34132.0,34131.0,0.17550489]
[1625565801157,0.40920927,34132.0,34131.0,0.00346481]
[1625565801256,0.64978471,34132.0,34131.0,0.00346481]
[1625565801553,2.67201734,34132.0,34131.0,0.00346481]
[1625565801801,1.66091301,34132.0,34131.0,0.00346481]
[1625565802707,2.6708746,34132.0,34131.0,0.00346481]
[1625565803107,2.6708746,34132.0,34130.0,0.00346503]
[1625565803508,2.18738995,34131.0,34130.0,0.00346503]
[1625565804260,2.18738995,34131.0,34130.0,0.08958752]
[1625565805761,0.48115088,34132.0,34130.0,0.00346503]
[1625565805861,0.48115088,34132.0,34130.0,0.06246503]
[1625565806062,0.48115088,34132.0,34130.0,0.059]
[1625565806162,1.17991775,34131.0,34130.0,0.74855394]
[1625565806461,1.17991775,34131.0,34130.0,1.26572745]
[1625565806566,1.17991775,34131.0,34130.0,1.26919228]
[1625565806663,1.18091775,34131.0,34130.0,1.26919228]
[1625565806762,0.001,34131.0,34130.0,2.30352931]
[1625565807012,0.50673288,34131.0,34130.0,2.30352931]
[1625565807564,0.50673288,34131.0,34130.0,3.51122655]
[1625565807864,1.1812594,34131.0,34130.0,3.45222655]
[1625565807963,1.1812594,34131.0,34130.0,3.51122655]
[1625565808065,1.1812594,34131.0,34130.0,3.45222655]
[1625565808163,1.1812594,34131.0,34130.0,3.51122655]
[1625565808365,0.50673288,34131.0,34130.0,3.51122655]
[1625565808464,0.79082288,34131.0,34130.0,3.51122655]
[1625565808563,0.79082288,34131.0,34130.0,3.45222655]
[1625565808667,1.46519761,34131.0,34130.0,3.45222655]
[1625565808865,1.46519761,34131.0,34130.0,2.24452931]
[1625565809116,1.46519761,34131.0,34130.0,2.30352931]
[1625565809216,2.47627046,34131.0,34130.0,2.30352931]
[1625565809669,2.47627046,34131.0,34130.0,2.24452931]
[1625565809768,2.47627046,34131.0,34130.0,2.30352931]
[1625565810221,2.47627046,34131.0,34130.0,2.24452931]
[1625565810371,2.47627046,34131.0,34130.0,2.30352931]
[1625565810470,2.47627046,34131.0,34130.0,2.24452931]
[1625565810871,2.47627046,34131.0,34130.0,2.30352931]
[1625565810971,2.47627046,34131.0,34130.0,2.24452931]
[1625565811072,2.47627046,34131.0,34130.0,2.30352931]
[1625565811172,2.47627046,34131.0,34130.0,2.24452931]
[1625565812474,2.47627046,34131.0,34130.0,2.30352931]
[1625565812575,2.47627046,34131.0,34130.0,2.24452931]
[1625565813176,2.47627046,34131.0,34130.0,3.45346172]
[1625565813676,3.65671356,34131.0,34130.0,2.24452931]
[1625565814679,3.65571356,34131.0,34130.0,3.45416122]
[1625565815233,5.00584509,34131.0,34130.0,2.24452931]
[1625565815733,5.00584509,34131.0,34130.0,1.21019228]
[1625565816388,0.28509,34131.0,34130.0,0.00346483]
[1625565816485,0.001,34131.0,34130.0,0.00346483]
[1625565816686,3.37857716,34131.0,34130.0,3.45790097]
[1625565816986,4.72877662,34131.0,34130.0,2.25110049]
[1625565817587,3.37857716,34131.0,34130.0,3.4613823]
[1625565817838,3.37857716,34131.0,34130.0,4.84454688]
[1625565818139,3.37857716,34131.0,34130.0,3.4613823]
[1625565818539,4.72873338,34131.0,34130.0,3.4613823]
[1625565819291,4.72873338,34131.0,34130.0,3.70195774]
[1625565820093,3.37857716,34131.0,34130.0,3.70195774]
[1625565820542,3.37857716,34131.0,34130.0,3.4613823]
[1625565820743,0.06,34131.0,34130.0,0.00346486]
[1625565821145,6.23846708,34131.0,34130.0,0.26283343]
[1625565821245,6.23846708,34131.0,34130.0,0.25936857]
[1625565821549,6.23846708,34131.0,34130.0,0.26283401]
[1625565821698,6.23846708,34131.0,34130.0,0.08992163]
[1625565821999,6.23846708,34131.0,34130.0,0.17637436]
[1625565822301,6.23846708,34131.0,34130.0,0.26281121]
[1625565822649,6.23846708,34131.0,34130.0,0.08990229]
[1625565822849,6.23846708,34131.0,34130.0,0.00346544]
[1625565823203,6.23846708,34131.0,34130.0,0.17633878]
[1625565823204,4.7213228,34131.0,34130.0,0.17633878]
[1625565823501,6.23251471,34131.0,34130.0,0.26277258]
[1625565823701,4.7213228,34131.0,34130.0,0.52205452]
[1625565824001,4.7213228,34131.0,34130.0,0.17632785]
[1625565824307,4.7213228,34131.0,34130.0,0.26274415]
[1625565824604,6.29026891,34131.0,34130.0,0.08988174]
[1625565824708,6.23126891,34131.0,34130.0,0.08988174]
[1625565824906,6.29026891,34131.0,34130.0,0.08988174]
[1625565825004,6.23126891,34131.0,34130.0,0.08988174]
[1625565825106,6.23126891,34131.0,34130.0,0.26271419]
[1625565825206,6.45772891,34131.0,34130.0,0.26271419]
[1625565825306,6.51672891,34131.0,34130.0,0.26271419]
[1625565825406,6.51672891,34131.0,34130.0,0.08988174]
[1625565826110,5.0067828,34131.0,34130.0,0.08988174]
[1625565826209,4.9477828,34131.0,34130.0,0.08988174]
[1625565826314,4.7213228,34131.0,34130.0,0.08988174]
[1625565826459,4.7213228,34131.0,34130.0,0.00346544]
[1625565826760,4.7213228,34131.0,34130.0,0.26266339]
[1625565827159,4.7213228,34131.0,34130.0,0.00346544]
[1625565827160,6.23100375,34131.0,34130.0,0.00346544]
[1625565827360,6.47157919,34131.0,34130.0,0.00346544]
[1625565828009,6.47157919,34131.0,34129.0,0.00346546]
[1625565828511,6.19078181,34130.0,34129.0,0.00346546]
[1625565828813,6.19078181,34130.0,34128.0,0.00346552]
[1625565829261,4.68395077,34129.0,34128.0,0.00346552]
[1625565829613,6.18847876,34129.0,34128.0,0.00346552]
[1625565829911,6.18847876,34129.0,34126.0,0.00346576]
[1625565830011,6.18847876,34129.0,34126.0,0.06246576]
[1625565830113,4.67822196,34127.0,34126.0,0.059]
[1625565830462,4.67822196,34127.0,34126.0,0.06246579]
[1625565831364,4.9187974,34127.0,34126.0,0.06246579]
[1625565831565,4.9187974,34127.0,34126.0,0.32150184]
[1625565831814,4.9187974,34127.0,34126.0,0.14881114]
[1625565832117,4.9187974,34127.0,34126.0,0.06246579]
[1625565834273,9.6277974,34127.0,34126.0,0.06246579]
[1625565834375,9.6277974,34127.0,34126.0,0.00346579]
[1625565834579,11.19077707,34127.0,34126.0,0.00346579]
[1625565834678,11.20637521,34127.0,34124.0,0.001]
[1625565835077,6.18089499,34125.0,34124.0,0.001]
[1625565835177,6.23989499,34125.0,34124.0,0.001]
[1625565835276,6.57083499,34125.0,34124.0,0.001]
[1625565835377,6.81141043,34125.0,34124.0,0.001]
[1625565835577,6.82700906,34125.0,34124.0,0.001]
[1625565836127,6.81141043,34125.0,34124.0,0.001]
[1625565837580,6.81141043,34125.0,34123.0,0.9378]
[1625565837983,6.1749221,34124.0,34123.0,0.9378]
[1625565838082,6.2339221,34124.0,34123.0,0.9378]
[1625565839383,6.47449754,34124.0,34123.0,0.9378]
[1625565840388,6.49009884,34124.0,34123.0,0.9378]
[1625565840689,8.1611308,34124.0,34123.0,0.9378]
[1625565840941,6.49009884,34124.0,34123.0,0.9378]
[1625565841742,6.47449754,34124.0,34123.0,0.9378]
[1625565841991,6.49009892,34124.0,34123.0,0.9378]
[1625565842941,6.47449754,34124.0,34123.0,0.9378]
[1625565843545,6.41549754,34124.0,34123.0,0.9378]
[1625565844099,6.41549754,34124.0,34123.0,1.2393]
[1625565844201,6.41549754,34124.0,34123.0,1.2983]
[1625565844399,6.41549754,34124.0,34123.0,1.3573]
[1625565844499,4.91356613,34124.0,34123.0,1.2983]
[1625565844599,4.91356613,34124.0,34123.0,1.3573]
[1625565845200,3.57849745,34124.0,34123.0,1.3573]
[1625565845499,3.57849745,34124.0,34123.0,1.2983]
[1625565845699,3.57849745,34124.0,34123.0,0.9968]
[1625565846102,4.91997636,34124.0,34123.0,0.9968]
[1625565846303,4.91997636,34124.0,34123.0,1.0558]
[1625565846404,3.57849745,34124.0,34123.0,0.9968]
[1625565847456,3.57849745,34124.0,34123.0,1.0558]
[1625565847554,3.57849745,34124.0,34123.0,0.9968]
[1625565847755,3.57849745,34124.0,34123.0,1.0558]
[1625565847855,3.57849745,34124.0,34123.0,0.9968]
[1625565848859,3.57849745,34124.0,34123.0,1.0558]
[1625565849060,1.57434555,34125.0,34123.0,1.0558]
[1625565849165,0.9184,34148.0,34123.0,1.0558]
[1625565849166,1.34137782,34126.0,34123.0,1.0558]
[1625565849262,0.37107782,34126.0,34123.0,1.0558]
[1625565849461,0.16783266,34124.0,34123.0,1.31411851]
[1625565849660,0.25196935,34127.0,34123.0,1.0558]
[1625565849910,0.0840457,34127.0,34123.0,1.0558]
[1625565850212,0.25194062,34127.0,34123.0,1.0558]
[1625565850511,0.25197207,34128.0,34123.0,1.0558]
[1625565851262,0.24057544,34134.0,34127.0,0.25834876]
[1625565851362,0.24057544,34134.0,34127.0,0.31734876]
[1625565851462,0.24057544,34134.0,34131.0,0.48115088]
[1625565851562,0.24057544,34134.0,34131.0,0.54015088]
[1625565851762,0.24057544,34134.0,34131.0,0.48115088]
[1625565852164,0.01760813,34132.0,34131.0,0.48115088]
[1625565852265,0.07660813,34132.0,34131.0,0.48115088]
[1625565852628,0.07660813,34132.0,34131.0,0.54015088]
[1625565852629,0.01760813,34132.0,34131.0,0.54015088]
[1625565853921,0.01760813,34132.0,34131.0,0.48115088]
[1625565854267,0.07660813,34132.0,34131.0,0.48115088]
[1625565854468,0.07660813,34132.0,34123.0,0.9948]
[1625565854566,0.42403813,34132.0,34123.0,0.9378]
[1625565854819,0.01561111,34131.0,34123.0,0.9378]
[1625565855022,0.07461111,34131.0,34123.0,0.9378]
[1625565855368,0.01561122,34130.0,34123.0,0.9378]
[1625565855474,0.24057544,34126.0,34125.0,0.24057544]
[1625565855771,0.24057544,34126.0,34125.0,0.29957544]
[1625565855885,0.24057544,34126.0,34125.0,0.35857544]
[1625565856179,0.24057544,34126.0,34125.0,0.3620414]
[1625565856375,0.24057544,34126.0,34125.0,0.448183]
[1625565856676,0.24057544,34126.0,34125.0,0.3620414]
[1625565857477,0.24057544,34126.0,34125.0,0.60261684]
[1625565857773,0.24057544,34126.0,34125.0,0.54361684]
[1625565858075,0.24057544,34126.0,34125.0,0.54015088]
[1625565858276,0.25618663,34126.0,34125.0,0.54015088]
[1625565858777,0.25618663,34126.0,34125.0,0.059]
[1625565859527,0.73733751,34126.0,34125.0,0.059]
[1625565860733,0.73733751,34126.0,34120.0,0.001]
[1625565860950,0.73733751,34126.0,34111.0,0.057]
[1625565860951,0.5,34125.0,34111.0,0.057]
[1625565861038,0.10351401,34125.0,34111.0,0.057]
[1625565861157,0.10351401,34125.0,34102.0,0.9603]
[1625565861160,0.10351401,34125.0,34114.0,0.25856867]
[1625565861161,0.16251401,34125.0,34114.0,0.25856867]
[1625565861235,0.22151401,34125.0,34114.0,0.25856867]
[1625565861333,0.01561584,34124.0,34114.0,0.25856867]
[1625565861437,0.01561584,34124.0,34111.0,0.25857393]
[1625565861438,1.49856404,34120.0,34111.0,0.25857393]
[1625565861537,0.48115088,34116.0,34111.0,0.25857393]
[1625565862036,0.48115088,34116.0,34107.0,0.29757544]
[1625565862037,0.48115088,34116.0,34110.0,0.25858739]
[1625565862236,0.48115088,34116.0,34115.0,0.002]
[1625565862337,0.54015088,34116.0,34112.0,0.002]
[1625565862539,0.48115088,34116.0,34112.0,0.061]
[1625565862637,0.54015088,34116.0,34112.0,0.061]
[1625565862742,0.54015088,34116.0,34112.0,0.002]
[1625565863593,0.48115088,34116.0,34112.0,0.002]
[1625565863695,0.48115088,34116.0,34112.0,0.061]
[1625565863792,0.54015088,34116.0,34112.0,0.061]
[1625565863893,0.48115088,34116.0,34112.0,0.061]
[1625565864093,1.82650048,34120.0,34112.0,0.061]
[1625565864193,1.88550048,34120.0,34112.0,0.12]
[1625565864394,1.33401476,34118.0,34112.0,0.12]
[1625565864594,1.33401476,34118.0,34113.0,0.00346732]
[1625565864693,1.33401476,34118.0,34113.0,0.06246732]
[1625565864842,1.33401476,34118.0,34113.0,0.12146732]
[1625565865044,1.33401476,34118.0,34113.0,0.118]
[1625565865248,1.33530361,34119.0,34113.0,0.118]
[1625565865344,1.33530361,34119.0,34114.0,0.00346714]
[1625565865546,0.24057544,34117.0,34116.0,0.24057544]
[1625565865648,0.24057544,34117.0,34116.0,0.29957544]
[1625565865747,0.24057544,34117.0,34116.0,0.35857544]
[1625565866799,0.24057544,34117.0,34116.0,0.36204238]
[1625565867201,0.24057544,34117.0,34116.0,0.44818574]
[1625565867452,0.24057544,34117.0,34116.0,0.36204238]
[1625565867551,0.24057544,34117.0,34116.0,0.60261782]
[1625565867653,0.24057544,34117.0,34116.0,0.59915088]
[1625565868052,0.24057544,34117.0,34116.0,0.54015088]
[1625565868152,0.24057544,34117.0,34116.0,0.48115088]
[1625565868756,0.24057544,34117.0,34116.0,0.24057544]
[1625565868856,1.84223426,34117.0,34116.0,0.24057544]
[1625565869163,3.06903061,34117.0,34116.0,0.24057544]
[1625565869362,4.56950237,34117.0,34116.0,0.24057544]
[1625565869562,4.81007781,34117.0,34112.0,0.24057544]
[1625565869865,4.81007781,34117.0,34112.0,0.29957544]
[1625565869964,2.50082828,34113.0,34112.0,0.29957544]
[1625565870063,2.50082828,34113.0,34112.0,0.059]
[1625565870269,1.16706431,34113.0,34112.0,0.059]
[1625565870569,1.16725296,34115.0,34112.0,0.059]
[1625565871267,1.16698401,34113.0,34112.0,0.059]
[1625565871369,1.38756401,34113.0,34112.0,0.059]
[1625565871468,1.38756401,34113.0,34109.0,0.001]
[1625565871573,0.24057544,34110.0,34109.0,0.001]
[1625565871669,0.24057544,34110.0,34109.0,0.06]
[1625565872268,0.24057544,34110.0,34109.0,0.119]
[1625565872370,0.74088156,34110.0,34109.0,0.72216334]
[1625565872620,0.24057544,34110.0,34109.0,0.119]
[1625565873068,0.24057544,34110.0,34109.0,0.20514808]
[1625565873069,0.57390489,34110.0,34109.0,0.20514808]
[1625565873370,0.24057544,34110.0,34109.0,0.119]
[1625565873670,0.57389294,34110.0,34109.0,0.119]
[1625565874071,0.49085098,34110.0,34109.0,0.63587123]
[1625565874322,0.49085098,34110.0,34109.0,0.63933852]
[1625565874572,0.32405616,34110.0,34109.0,0.46704811]
[1625565874871,0.49087936,34110.0,34109.0,0.63937142]
[1625565875070,0.49087936,34110.0,34109.0,0.58037142]
[1625565875171,0.57386574,34110.0,34109.0,0.14615224]
[1625565875422,0.57386574,34110.0,34109.0,0.20515224]
[1625565875521,0.57386574,34110.0,34109.0,0.119]
[1625565875722,0.57386574,34110.0,34109.0,0.12246734]
[1625565875873,0.32405168,34110.0,34109.0,0.46706764]
[1625565876176,0.24057544,34110.0,34109.0,0.46706764]
[1625565876324,0.24157544,34110.0,34109.0,0.46606764]
[1625565876423,0.32507792,34110.0,34109.0,0.12146734]
[1625565877227,0.24157544,34110.0,34109.0,0.12146734]
[1625565877882,0.24157544,34110.0,34109.0,0.06246734]
[1625565878082,0.24157544,34110.0,34109.0,0.059]
[1625565878183,0.24157544,34110.0,34109.0,0.14515943]
[1625565878184,0.57443509,34110.0,34109.0,0.14515943]
[1625565878532,0.24157544,34110.0,34109.0,0.14515943]
[1625565878786,0.24157544,34110.0,34109.0,0.059]
[1625565879083,0.24157544,34110.0,34109.0,0.118]
[1625565879402,0.24157544,34110.0,34109.0,0.1214672]
[1625565880435,0.24157544,34110.0,34109.0,1.15572024]
[1625565881087,0.49156546,34110.0,34109.0,0.1214672]
[1625565881387,0.57455848,34110.0,34109.0,0.7247854]
[1625565881487,0.57455848,34110.0,34109.0,0.6657854]
[1625565881588,0.57455848,34110.0,34109.0,0.6623182]
[1625565881788,0.57455848,34110.0,34109.0,0.6657856]
[1625565881891,0.24157544,34110.0,34109.0,0.0624674]
[1625565882140,0.24157544,34110.0,34109.0,0.059]
[1625565882239,1.23980827,34110.0,34109.0,0.059]
[1625565884245,1.23980827,34110.0,34109.0,0.06246741]
[1625565884501,1.23980827,34110.0,34109.0,0.14867489]
[1625565884503,0.24157544,34110.0,34109.0,0.14867489]
[1625565885295,0.74116692,34110.0,34109.0,0.40726486]
[1625565885394,0.74116692,34110.0,34109.0,0.46626486]
[1625565885494,0.74116692,34110.0,34109.0,0.12146741]
[1625565885796,0.82452565,34110.0,34109.0,0.12146741]
[1625565885997,0.82452565,34110.0,34109.0,0.06246741]
[1625565886097,1.23942735,34110.0,34109.0,0.06246741]
[1625565889654,1.72057823,34110.0,34109.0,0.06246741]
[1625565890860,1.72057823,34110.0,34109.0,0.14869466]
[1625565891665,1.72057823,34110.0,34109.0,0.3892701]
[1625565892469,1.72057823,34110.0,34109.0,0.56174458]
[1625565892719,1.72057823,34110.0,34109.0,0.30304285]
[1625565892720,0.72272632,34110.0,34109.0,0.30304285]
[1625565892969,0.72272632,34110.0,34109.0,0.64799426]
[1625565893370,0.72272632,34110.0,34109.0,0.57989543]
[1625565894321,0.72272632,34110.0,34109.0,0.6661446]
[1625565894572,0.72272632,34110.0,34109.0,0.14871658]
[1625565894672,1.72075505,34110.0,34109.0,0.14871658]
[1625565895023,1.72075505,34110.0,34109.0,0.06246741]
[1625565897528,1.97390505,34110.0,34109.0,0.06246741]
[1625565897832,1.97390505,34110.0,34109.0,0.00346741]
[1625565898582,3.15296449,34110.0,34108.0,0.00346765]
[1625565898881,0.99717507,34109.0,34108.0,0.00346765]
[1625565899080,2.23483801,34109.0,34108.0,0.00346765]
[1625565899180,2.29383801,34109.0,34108.0,0.00346765]
[1625565899385,2.29383801,34109.0,34103.0,1.03594077]
[1625565899386,2.29383801,34109.0,34107.0,0.00346818]
[1625565899387,3.6221016,34109.0,34107.0,0.00346818]
[1625565899631,3.6221016,34109.0,34103.0,0.51850834]
[1625565899632,8.62373404,34108.0,34103.0,0.08725217]
[1625565899733,0.48115088,34104.0,34103.0,0.08725217]
[1625565899830,1.47716207,34104.0,34103.0,0.08725217]
[1625565900034,1.53616207,34104.0,34103.0,0.08725217]
[1625565900134,0.48115088,34104.0,34103.0,0.60477134]
[1625565900232,0.54015088,34104.0,34103.0,0.60823945]
[1625565900432,1.53596959,34104.0,34103.0,0.00446811]
[1625565900581,1.47696959,34104.0,34103.0,0.00446811]
[1625565900781,1.53596959,34104.0,34103.0,0.09071328]
[1625565900885,0.54015088,34104.0,34103.0,0.26320362]
[1625565901181,1.53594634,34104.0,34103.0,0.00446811]
[1625565901382,1.47694634,34104.0,34103.0,0.00446811]
[1625565901582,0.48115088,34104.0,34103.0,0.26320576]
[1625565902284,0.54015088,34104.0,34103.0,0.26320576]
[1625565902385,0.54015088,34104.0,34103.0,0.52194138]
[1625565902785,0.54015088,34104.0,34103.0,0.09069961]
[1625565903239,1.53645614,34104.0,34103.0,0.00446811]
[1625565903987,1.47745614,34104.0,34103.0,0.00446811]
[1625565904087,1.53645614,34104.0,34103.0,0.00446811]
[1625565904237,1.47745614,34104.0,34103.0,0.00446811]
[1625565904337,1.53645614,34104.0,34103.0,0.00446811]
[1625565905140,1.47745614,34104.0,34103.0,0.00446811]
[1625565905239,1.53645614,34104.0,34103.0,0.00446811]
[1625565905340,0.54015088,34104.0,34103.0,0.00446811]
[1625565905554,0.48115088,34104.0,34103.0,0.00446811]
[1625565905792,0.48115088,34104.0,34103.0,0.60794424]
[1625565905940,0.54015088,34104.0,34103.0,0.60794424]
[1625565906044,0.48115088,34104.0,34103.0,0.60794424]
[1625565906390,0.48215088,34104.0,34103.0,0.60694424]
[1625565906590,0.48215088,34104.0,34103.0,0.26210074]
[1625565906892,0.48215088,34104.0,34103.0,0.60694527]
[1625565908049,0.54115088,34104.0,34103.0,0.60694527]
[1625565908148,0.48215088,34104.0,34103.0,0.60694527]
[1625565908246,0.48215088,34104.0,34103.0,0.26210074]
[1625565908351,0.54115088,34104.0,34103.0,0.26210074]
[1625565908949,0.48215088,34104.0,34103.0,0.08967899]
[1625565909048,0.82762088,34104.0,34103.0,0.08967899]
[1625565909252,1.43440203,34104.0,34103.0,0.26211094]
[1625565909451,1.49340203,34104.0,34103.0,0.26211094]
[1625565909552,1.43440203,34104.0,34103.0,0.26211094]
[1625565909650,1.43440203,34104.0,34103.0,0.08967899]
[1625565910002,1.43440203,34104.0,34103.0,0.00346811]
[1625565911005,2.43383529,34104.0,34103.0,0.60735443]
[1625565911658,2.43383529,34104.0,34103.0,0.26227653]
[1625565911861,2.19325985,34104.0,34103.0,0.50285197]
[1625565912109,2.19325985,34104.0,34103.0,0.84794607]
[1625565912209,2.25225985,34104.0,34103.0,0.84794607]
[1625565912309,2.19325985,34104.0,34103.0,0.84794607]
[1625565912411,2.19325985,34104.0,34103.0,0.50285197]
[1625565913061,2.19325985,34104.0,34103.0,0.33031302]
[1625565913313,2.19325985,34104.0,34103.0,0.76191316]
[1625565913913,2.19325985,34104.0,34103.0,0.84822475]
[1625565914364,2.19325985,34104.0,34103.0,0.33035514]
[1625565914664,3.35809297,34104.0,34103.0,0.24057544]
[1625565914764,3.41709297,34104.0,34103.0,0.24404369]
[1625565914864,3.35809297,34104.0,34103.0,0.24404369]
[1625565914966,3.35809297,34104.0,34103.0,0.33037134]
[1625565915065,3.35809297,34104.0,34103.0,0.33383959]
[1625565915519,2.19325985,34104.0,34103.0,0.50649413]
[1625565915717,2.19325985,34104.0,34103.0,0.76547268]
[1625565915815,2.19325985,34104.0,34103.0,1.02517268]
[1625565916016,2.19325985,34104.0,34103.0,0.50721194]
[1625565916220,2.19325985,34104.0,34103.0,0.56621194]
[1625565916320,1.66621441,34104.0,34103.0,0.62521194]
[1625565916471,0.41829416,34104.0,34103.0,2.35156857]
[1625565916576,0.58524518,34104.0,34103.0,6.43216857]
[1625565916771,0.58524518,34104.0,34103.0,6.37316857]
[1625565917021,0.58524518,34104.0,34103.0,6.43216857]
[1625565917123,0.25150992,34104.0,34103.0,7.64062773]
[1625565917474,0.50197227,34104.0,34103.0,7.64062773]
[1625565917974,0.25161497,34104.0,34103.0,9.02260599]
[1625565918375,0.001,34104.0,34103.0,9.02260599]
[1625565919077,0.001,34104.0,34103.0,4.94200599]
[1625565919277,0.08462963,34104.0,34103.0,4.94200599]
[1625565919476,0.001,34104.0,34103.0,3.56002773]
[1625565919725,0.33480989,34104.0,34103.0,3.50102773]
[1625565919826,0.33480989,34104.0,34103.0,3.56002773]
[1625565920027,0.5017864,34104.0,34103.0,4.94241173]
[1625565920627,0.58537291,34104.0,34103.0,4.94241173]
[1625565920876,0.33480989,34104.0,34103.0,4.94241173]
[1625565921176,0.501967,34104.0,34103.0,4.94241173]
[1625565921428,0.33480989,34104.0,34103.0,4.94241173]
[1625565921680,0.5020851,34104.0,34103.0,4.94241173]
[1625565921928,0.33480989,34104.0,34103.0,4.94241173]
[1625565922228,0.08469433,34104.0,34103.0,4.94241173]
[1625565922729,0.25192095,34104.0,34103.0,4.94241173]
[1625565923280,0.58611357,34104.0,34103.0,4.94241173]
[1625565923730,0.33421357,34104.0,34103.0,4.94241173]
[1625565923881,0.16722359,34105.0,34103.0,4.94241173]
[1625565923982,1.00250624,34108.0,34103.0,4.94241173]
[1625565924083,0.50200624,34108.0,34103.0,4.94241173]
[1625565924185,0.50200624,34108.0,34103.0,5.44241173]
[1625565924283,0.002,34109.0,34103.0,5.44241173]
[1625565924284,0.002,34109.0,34107.0,2.5925811]
[1625565924483,0.002,34109.0,34107.0,2.7105811]
[1625565924583,0.002,34109.0,34108.0,0.00346729]
[1625565924684,0.002,34109.0,34108.0,0.06246729]
[1625565924784,1.17384055,34114.0,34108.0,2.71387715]
[1625565924987,0.67344055,34114.0,34108.0,2.71387715]
[1625565925082,0.67344055,34114.0,34109.0,0.50346719]
[1625565925186,0.67344055,34114.0,34109.0,0.62146719]
[1625565925388,0.67344055,34114.0,34110.0,0.00346683]
[1625565925487,0.004,34119.0,34113.0,1.38250691]
[1625565925686,0.004,34119.0,34113.0,1.44150691]
[1625565925786,0.004,34119.0,34113.0,1.50050691]
[1625565925887,0.004,34119.0,34118.0,0.96230176]
[1625565925986,0.004,34119.0,34118.0,1.25032176]
[1625565926089,0.004,34119.0,34118.0,1.30932176]
[1625565926189,0.004,34119.0,34118.0,1.31278851]
[1625565927543,0.004,34119.0,34118.0,2.6948721]
[1625565928645,0.004,34119.0,34118.0,1.31278851]
[1625565930050,0.004,34119.0,34118.0,1.30932176]
[1625565930401,0.004,34120.0,34118.0,1.30932176]
[1625565936415,0.001,34121.0,34118.0,1.30932176]
[1625565939370,0.001,34121.0,34120.0,0.51709769]
[1625565939471,0.001,34121.0,34120.0,0.57609769]
[1625565939569,0.001,34121.0,34120.0,0.63509769]
[1625565942931,0.001,34121.0,34120.0,0.118]
[1625565943685,0.001,34121.0,34120.0,0.63469207]
[1625565944035,0.001,34121.0,34120.0,0.118]
[1625565944487,0.001,34121.0,34120.0,0.2065]
[1625565944736,0.001,34121.0,34120.0,0.118]
[1625565948592,0.001,34121.0,34120.0,0.12146622]
[1625565949300,0.5030851,34122.0,34120.0,0.12146622]
[1625565949397,0.001,34122.0,34120.0,0.12146622]
[1625565949701,0.001,34122.0,34120.0,0.118]
[1625565950051,0.50286252,34122.0,34120.0,0.118]
[1625565950702,0.50286252,34122.0,34121.0,0.00346633]
[1625565950801,0.50286252,34122.0,34121.0,0.12146633]
[1625565951503,0.001,34122.0,34121.0,0.12146633]
[1625565951752,0.50279271,34122.0,34121.0,0.12146633]
[1625565952052,0.001,34122.0,34121.0,0.12146633]
[1625565952353,0.50283242,34122.0,34121.0,0.12146633]
[1625565952554,0.001,34122.0,34121.0,0.12146633]
[1625565953306,0.50296953,34122.0,34121.0,0.12146633]
[1625565953810,0.001,34122.0,34121.0,0.12146633]
[1625565954662,0.5029637,34122.0,34121.0,0.12146633]
[1625565954862,0.51851182,34122.0,34121.0,0.12146633]
[1625565955368,0.51751182,34122.0,34121.0,0.12146633]
[1625565955865,0.51751182,34122.0,34121.0,0.06246633]
[1625565955964,0.51751182,34122.0,34121.0,0.12146633]
[1625565956353,0.51751182,34122.0,34121.0,0.00346633]
[1625565956354,0.85089182,34122.0,34121.0,0.00346633]
[1625565956529,0.90989182,34122.0,34121.0,0.00346633]
[1625565956618,1.91294368,34122.0,34121.0,0.00346633]
[1625565956731,1.91294368,34122.0,34118.0,0.72172632]
[1625565956732,1.97194368,34122.0,34119.0,0.00346694]
[1625565956865,4.4422,34120.0,34119.0,0.00346694]
[1625565956964,4.5012,34120.0,34118.0,0.72172632]
[1625565957065,4.5602,34120.0,34118.0,0.72172632]
[1625565957268,0.01555148,34119.0,34118.0,0.72172632]
[1625565957468,2.96970886,34119.0,34118.0,0.72172632]
[1625565957570,4.13749912,34119.0,34118.0,0.72172632]
[1625565958120,5.63796774,34119.0,34118.0,0.72172632]
[1625565958219,5.87854318,34119.0,34118.0,0.72172632]
[1625565961777,5.87854318,34119.0,34118.0,0.24057544]
[1625565965143,5.81954318,34119.0,34118.0,0.24057544]
[1625565965443,5.87854318,34119.0,34118.0,0.24057544]
[1625565966443,5.81954318,34119.0,34118.0,0.24057544]
[1625565966543,4.37807456,34119.0,34118.0,0.24057544]
[1625565966641,4.36252308,34119.0,34118.0,0.24057544]
[1625565966844,5.86200399,34119.0,34118.0,0.24057544]
[1625565967393,5.80300399,34119.0,34118.0,0.24057544]
[1625565967501,5.50342855,34119.0,34118.0,0.51561544]
[1625565967594,4.00394764,34119.0,34118.0,0.51561544]